bitfinex-derivatives/quotes_ETHF0:USTF0_20260121
["timestamp","ask_amount","ask_price","bid_price","bid_amount"]
[1769029883503,0.79220255,3028.8,3028.0,0.9346666]
[1769029883696,0.79220255,3028.7,3028.0,0.9346666]
[1769029883896,2.26370337,3029.3,3028.0,0.9346666]
[1769029884101,0.79217286,3029.2,3028.0,0.9346666]
[1769029884300,0.79217286,3029.1,3028.0,0.9346666]
[1769029884599,0.79217286,3029.0,3028.0,0.9346666]
[1769029884799,0.79217286,3028.9,3028.0,0.9346666]
[1769029885001,0.79217286,3028.8,3028.0,0.9346666]
[1769029885303,2.26370337,3029.3,3028.0,0.9346666]
[1769029885502,0.79198521,3029.2,3028.0,0.9346666]
[1769029885702,0.79198521,3029.1,3028.0,0.9346666]
[1769029885904,0.79198521,3029.0,3028.0,0.9346666]
[1769029886203,0.79198521,3028.9,3028.0,0.9346666]
[1769029886403,0.79198521,3028.8,3028.0,0.9346666]
[1769029886602,2.26370337,3029.3,3028.0,0.9346666]
[1769029886803,0.79189869,3029.2,3028.0,0.9346666]
[1769029887104,1.99485992,3028.7,3027.8,3.868]
[1769029887305,0.79189869,3028.6,3027.8,3.868]
[1769029888403,0.79189869,3028.6,3027.4,0.16529]
[1769029889195,0.79189869,3028.6,3027.6,0.9346666]
[1769029889704,2.92952652,3029.1,3027.6,0.9346666]
[1769029889907,0.79196362,3029.0,3027.6,0.9346666]
[1769029890101,2.92952652,3029.1,3027.6,0.9346666]
[1769029890102,0.79196362,3028.9,3027.6,0.9346666]
[1769029890308,0.79196362,3028.8,3027.6,0.9346666]
[1769029890502,0.79196362,3028.7,3027.6,1.0999466]
[1769029890701,0.79196362,3028.6,3027.6,1.0999466]
[1769029890902,2.92952652,3029.1,3027.6,1.0999466]
[1769029891096,0.79194268,3029.0,3028.0,0.16526]
[1769029891303,2.03559132,3029.5,3028.2,0.9346666]
[1769029891502,0.79171337,3029.4,3028.2,0.9384026]
[1769029891701,2.03559132,3029.5,3028.2,0.9384026]
[1769029891702,0.79171337,3029.3,3028.2,0.9384026]
[1769029891902,0.79171337,3029.2,3028.2,0.9384026]
[1769029892105,0.79171337,3029.1,3028.2,0.9384026]
[1769029892298,0.79171337,3029.0,3028.2,0.9384026]
[1769029892503,0.00354063,3029.8,3028.2,1.1036526]
[1769029892704,2.82712233,3029.7,3028.2,1.1036526]
[1769029892905,0.79153101,3029.6,3028.2,1.1036526]
[1769029893106,0.79153101,3029.5,3028.2,1.1036526]
[1769029893302,0.79153101,3029.4,3028.8,0.9346666]
[1769029893610,0.00354063,3029.8,3028.8,0.9346666]
[1769029893806,0.00354063,3029.8,3028.6,1.99539261]
[1769029894409,0.00354063,3029.8,3028.8,0.9346666]
[1769029895002,0.9346666,3029.7,3028.7,0.16522]
[1769029896906,2.03913195,3029.8,3028.7,0.16522]
[1769029905130,0.00354063,3029.8,3028.7,0.16522]
[1769029907327,2.03913195,3029.8,3028.3,3.868]
[1769029908228,2.03913195,3029.8,3028.4,0.16524]
[1769029908428,2.03913195,3029.8,3028.4,2.16063261]
[1769029909422,2.03913195,3029.8,3028.4,0.16524]
[1769029909928,0.78639661,3029.7,3028.4,0.16524]
[1769029910128,2.03913195,3029.8,3028.4,0.16524]
[1769029910330,0.78643176,3029.7,3028.4,0.16524]
[1769029910526,2.03913195,3029.8,3028.4,0.16524]
[1769029910722,2.82212364,3029.7,3028.4,0.16524]
[1769029910922,2.03559132,3029.7,3028.4,0.16524]
[1769029913132,0.00354063,3029.8,3028.3,3.868]
[1769029913133,2.03559132,3029.5,3028.3,3.868]
[1769029914632,0.00354063,3029.8,3027.6,1.7574649]
[1769029914633,2.03559132,3029.3,3027.6,1.7574649]
[1769029914836,2.03559132,3029.1,3027.4,1.9227549]
[1769029915139,2.82055736,3029.0,3027.4,1.9227549]
[1769029915431,2.03559132,3029.0,3027.4,1.9227549]
[1769029915829,2.03559132,3029.0,3027.4,1.925179]
[1769029916639,2.03559132,3029.0,3027.5,0.16529]
[1769029916840,2.03559132,3029.0,3027.8,0.93424138]
[1769029917035,2.03559132,3029.4,3028.1,0.93424138]
[1769029917235,0.78502601,3029.3,3028.1,0.93424138]
[1769029917429,0.78502601,3029.2,3028.1,0.93424138]
[1769029917627,0.78502601,3029.1,3028.1,0.93424138]
[1769029917832,2.03559132,3029.4,3028.1,0.93424138]
[1769029918032,0.78521677,3029.3,3028.1,0.93424138]
[1769029918233,0.78521677,3029.2,3028.1,0.93424138]
[1769029918432,0.78521677,3029.1,3028.1,0.93424138]
[1769029918629,2.03559132,3029.4,3028.1,0.93424138]
[1769029918829,0.78544416,3029.3,3028.1,0.93424138]
[1769029919035,0.78544416,3029.2,3028.1,0.93424138]
[1769029919335,0.78544416,3029.1,3028.1,0.93424138]
[1769029919640,2.03559132,3029.4,3028.1,0.93424138]
[1769029919839,0.78565851,3029.3,3028.1,0.93424138]
[1769029920039,2.03559132,3029.4,3028.1,0.93424138]
[1769029920040,0.78565851,3029.2,3028.1,0.93424138]
[1769029920241,0.78565851,3029.1,3028.1,0.93424138]
[1769029920442,2.03559132,3029.4,3028.1,0.93424138]
[1769029920635,0.7858854,3029.3,3028.1,0.93424138]
[1769029920834,0.7858854,3029.2,3028.1,0.93424138]
[1769029921038,0.7858854,3029.1,3028.1,0.93424138]
[1769029921232,2.03559132,3029.4,3028.1,0.93424138]
[1769029921437,0.78588578,3029.3,3028.1,0.93424138]
[1769029921637,0.78588578,3029.2,3028.1,0.93424138]
[1769029921840,0.78588578,3029.1,3028.1,0.93424138]
[1769029922040,2.03559132,3029.4,3028.1,0.93424138]
[1769029922241,0.78588648,3029.3,3028.1,0.93424138]
[1769029922546,0.78588648,3029.2,3028.1,0.93424138]
[1769029922745,0.78588648,3029.1,3028.1,0.93424138]
[1769029922947,2.03559132,3029.4,3028.1,0.93424138]
[1769029923140,0.78588406,3029.3,3028.1,0.93424138]
[1769029923341,0.78588406,3029.2,3028.1,0.93424138]
[1769029923541,2.03559132,3029.4,3028.1,0.93424138]
[1769029923737,0.78585258,3029.3,3028.1,3.16222005]
[1769029924047,0.78585258,3029.2,3028.1,1.09950138]
[1769029924250,0.78586583,3029.1,3028.1,0.16526]
[1769029924443,3.27508589,3029.3,3028.1,0.16526]
[1769029924642,0.7858714,3029.2,3028.1,0.16526]
[1769029924844,2.34084451,3029.0,3027.9,3.868]
[1769029926146,0.93424138,3029.3,3027.9,3.868]
[1769029926351,0.78578681,3029.2,3027.9,3.868]
[1769029926542,0.78578681,3029.1,3027.9,3.868]
[1769029926744,2.34084451,3029.4,3028.1,0.93424138]
[1769029926950,0.78575305,3029.3,3028.1,0.93424138]
[1769029927148,0.78575305,3029.2,3028.1,0.93424138]
[1769029927348,2.34084451,3029.4,3028.1,0.93424138]
[1769029927545,0.78576389,3029.3,3028.1,0.93424138]
[1769029927847,0.78576389,3029.2,3028.1,0.93424138]
[1769029928151,2.34084451,3029.4,3028.1,0.93424138]
[1769029928340,0.78578558,3029.3,3028.1,0.93424138]
[1769029928543,0.78578558,3029.2,3028.1,0.93424138]
[1769029928743,2.34084451,3029.4,3028.1,0.93424138]
[1769029928945,0.78578098,3029.3,3028.1,0.93424138]
[1769029929147,0.78578098,3029.2,3028.1,0.93424138]
[1769029929350,2.34084451,3029.4,3028.1,0.93424138]
[1769029929648,0.7857767,3029.3,3028.1,0.93424138]
[1769029929842,0.7857767,3029.2,3028.1,0.93424138]
[1769029930043,2.34084451,3029.4,3028.1,0.93424138]
[1769029930244,0.78577722,3029.3,3028.1,0.93424138]
[1769029930541,0.78577722,3029.2,3028.1,0.93424138]
[1769029930746,2.34084451,3029.4,3028.1,0.93424138]
[1769029930950,0.78581451,3029.3,3028.0,4.03326]
[1769029931140,0.78581451,3029.2,3028.0,4.03326]
[1769029931344,2.34084451,3029.4,3028.0,4.03326]
[1769029931545,0.78585915,3029.3,3028.0,4.03326]
[1769029931749,0.78585915,3029.2,3028.0,4.03326]
[1769029931949,2.34084451,3029.4,3028.0,4.03326]
[1769029932146,0.78585973,3029.3,3028.0,4.03326]
[1769029932450,0.78585973,3029.2,3028.0,4.03326]
[1769029932652,2.34084451,3029.4,3028.0,4.03326]
[1769029932848,0.78591475,3029.3,3028.0,4.03326]
[1769029933154,0.78591475,3029.2,3028.0,4.03326]
[1769029933355,0.78591475,3029.1,3028.0,4.03326]
[1769029933555,2.34084451,3029.4,3028.0,4.03326]
[1769029933753,0.78597071,3029.3,3028.0,4.03326]
[1769029933954,0.78597071,3029.2,3028.0,4.03326]
[1769029934148,0.78597071,3029.1,3028.0,4.03326]
[1769029934353,2.34084451,3029.4,3028.0,4.03326]
[1769029934653,0.78603845,3029.3,3028.0,4.03326]
[1769029934855,0.78603845,3029.2,3028.0,4.03326]
[1769029935050,0.78603845,3029.1,3028.0,4.03326]
[1769029935252,0.78606897,3029.0,3028.0,4.03326]
[1769029935558,0.78606897,3028.9,3028.0,4.03326]
[1769029935758,2.34084451,3029.1,3028.0,4.03326]
[1769029935953,0.78620946,3029.0,3028.0,4.03326]
[1769029936158,0.78620946,3028.9,3028.0,4.03326]
[1769029936361,2.34084451,3029.1,3028.0,4.03326]
[1769029936550,0.78631264,3029.0,3028.0,4.03326]
[1769029936752,0.78631264,3028.9,3028.0,4.03326]
[1769029936953,2.34084451,3029.1,3028.0,4.03326]
[1769029937159,0.78631265,3029.0,3028.0,4.03326]
[1769029937359,0.78631265,3028.9,3028.0,4.03326]
[1769029937554,2.34084451,3029.1,3028.0,4.03326]
[1769029937757,0.78644229,3029.0,3028.0,4.03326]
[1769029938055,0.78644229,3028.9,3028.0,4.03326]
[1769029938358,2.34084451,3029.1,3028.0,4.03326]
[1769029938560,0.7865279,3029.0,3028.0,4.03326]
[1769029938759,0.7865279,3028.9,3028.0,4.03326]
[1769029938957,2.34084451,3029.1,3028.0,4.03326]
[1769029939265,0.78652793,3029.0,3028.0,3.868]
[1769029939462,0.78652793,3028.9,3028.0,3.868]
[1769029939761,0.78652793,3028.8,3028.0,3.868]
[1769029940062,2.34084451,3029.1,3027.7,3.868]
[1769029940264,0.78665836,3029.0,3027.7,3.868]
[1769029940560,0.78665836,3028.9,3027.7,3.868]
[1769029940761,0.78665836,3028.8,3027.7,3.868]
[1769029940962,2.34084451,3029.1,3027.7,6.26125867]
[1769029941161,0.78677201,3029.0,3027.7,6.26125867]
[1769029941361,0.78677201,3028.9,3027.7,6.26125867]
[1769029941554,0.78677201,3028.8,3027.7,6.26125867]
[1769029941759,2.34084451,3029.1,3027.7,6.26125867]
[1769029942059,0.7869235,3029.0,3027.7,6.26125867]
[1769029942264,0.7869235,3028.9,3027.7,8.01872357]
[1769029942461,0.7869235,3028.8,3027.7,8.01872357]
[1769029942658,2.34084451,3029.1,3027.7,8.01872357]
[1769029942863,0.78700413,3029.0,3027.7,8.01872357]
[1769029943163,0.78700413,3028.9,3027.8,2.22797867]
[1769029943464,0.16517,3029.7,3028.0,2.22797867]
[1769029943762,0.78701919,3029.6,3028.0,2.22797867]
[1769029943968,0.78701919,3029.5,3028.0,2.22797867]
[1769029944162,0.78701919,3029.4,3028.0,2.22797867]
[1769029944467,0.78701919,3029.3,3028.0,2.22797867]
[1769029944669,0.78701919,3029.2,3028.0,2.22797867]
[1769029944966,0.16517,3029.7,3028.0,2.22797867]
[1769029944967,0.78701919,3029.1,3028.0,2.22797867]
[1769029945165,0.78701919,3029.0,3027.9,0.16526]
[1769029945365,0.78701919,3028.9,3027.9,0.16526]
[1769029945560,2.34084451,3029.2,3027.9,0.16526]
[1769029945865,0.78648874,3029.1,3027.9,0.16526]
[1769029946065,0.78648874,3029.0,3027.9,0.16526]
[1769029946365,0.78648874,3028.9,3027.9,0.16526]
[1769029946560,2.34084451,3029.2,3027.9,0.16526]
[1769029946761,0.78651085,3029.1,3027.9,0.16526]
[1769029947065,0.78651085,3029.0,3027.9,0.16526]
[1769029947266,0.78651085,3028.9,3027.9,0.16526]
[1769029947459,2.34084451,3029.2,3027.9,0.16526]
[1769029947661,0.78649853,3029.1,3027.9,0.16526]
[1769029947865,0.78649853,3029.0,3027.9,0.16526]
[1769029948064,0.78649853,3028.9,3027.9,0.16526]
[1769029948266,2.34084451,3029.6,3027.9,2.39323867]
[1769029948458,0.78648747,3029.5,3028.0,2.22797867]
[1769029948662,0.78648747,3029.4,3028.0,2.22797867]
[1769029948859,0.78648747,3029.3,3028.0,2.22797867]
[1769029949067,0.78648747,3029.2,3028.0,2.22797867]
[1769029949268,0.78648747,3029.1,3028.0,2.22797867]
[1769029949467,0.78648747,3029.0,3028.0,2.22797867]
[1769029949669,2.34084451,3029.6,3028.0,2.22797867]
[1769029949867,0.78648229,3029.5,3028.0,2.22797867]
[1769029950066,0.78648229,3029.4,3028.0,2.22797867]
[1769029950264,0.78648229,3029.3,3028.0,2.22797867]
[1769029950466,0.78648229,3029.2,3028.0,2.22797867]
[1769029950667,0.78648229,3029.1,3028.0,2.22797867]
[1769029950965,0.78648229,3029.0,3028.0,2.22797867]
[1769029951166,2.34084451,3029.6,3028.0,2.22797867]
[1769029951364,0.78648611,3029.5,3028.0,2.22797867]
[1769029951564,0.78648611,3029.4,3028.0,2.22797867]
[1769029951764,0.78648611,3029.3,3028.0,6.09597867]
[1769029951965,0.78648611,3029.2,3028.0,6.09597867]
[1769029952266,0.78648611,3029.1,3028.0,6.09597867]
[1769029952464,0.78648611,3029.0,3028.0,6.09597867]
[1769029952660,2.34084451,3029.6,3028.0,6.09597867]
[1769029952866,0.78648498,3029.5,3028.0,6.09597867]
[1769029953169,0.78648498,3029.4,3028.0,6.09597867]
[1769029953369,0.78648498,3029.3,3028.0,6.09597867]
[1769029953558,0.78648498,3029.2,3028.0,6.09597867]
[1769029953760,0.78648498,3029.1,3028.0,6.09597867]
[1769029953959,0.78648498,3029.0,3028.0,6.09597867]
[1769029954161,2.34084451,3029.6,3028.0,6.09597867]
[1769029954371,0.7864952,3029.5,3028.0,6.09597867]
[1769029954575,0.7864952,3029.4,3028.0,6.09597867]
[1769029954776,0.7864952,3029.3,3028.0,6.09597867]
[1769029955072,0.7864952,3029.2,3028.0,6.09597867]
[1769029955379,0.7864952,3029.1,3028.0,6.09597867]
[1769029955564,0.7864952,3029.0,3028.0,6.09597867]
[1769029955766,2.34084451,3029.6,3028.0,6.09597867]
[1769029955969,0.78650414,3029.5,3028.0,6.09597867]
[1769029956171,0.78650414,3029.4,3028.0,6.26123867]
[1769029956372,0.78650414,3029.3,3028.0,6.26123867]
[1769029956572,0.78650414,3029.2,3028.0,6.26123867]
[1769029956875,0.78650414,3029.1,3028.0,6.26123867]
[1769029957074,0.78650414,3029.0,3028.0,6.26123867]
[1769029957274,2.34084451,3029.6,3028.0,6.26123867]
[1769029957476,0.7865024,3029.5,3028.0,6.26123867]
[1769029957778,0.7865024,3029.4,3028.0,6.26123867]
[1769029957973,0.7865024,3029.3,3028.0,6.26123867]
[1769029958268,0.7865024,3029.2,3028.0,6.26123867]
[1769029958470,0.7865024,3029.1,3028.0,6.26123867]
[1769029958677,0.7865024,3029.0,3028.0,6.26123867]
[1769029958882,2.41422809,3029.5,3028.0,6.26123867]
[1769029959173,0.78650623,3029.4,3028.0,6.26123867]
[1769029959372,0.78650623,3029.3,3028.0,6.26123867]
[1769029959576,0.78650623,3029.2,3028.0,6.26123867]
[1769029959776,0.78650623,3029.1,3028.0,6.26123867]
[1769029959978,0.78650623,3029.0,3028.0,6.26123867]
[1769029960178,2.41422809,3029.4,3028.0,6.26123867]
[1769029960382,0.78654517,3029.3,3028.0,6.26123867]
[1769029960573,0.78654517,3029.2,3028.0,6.26123867]
[1769029960773,0.78654517,3029.1,3028.0,6.26123867]
[1769029960971,0.78654517,3029.0,3028.0,6.26123867]
[1769029961267,2.41422809,3029.4,3028.0,0.16526]
[1769029961470,2.41422809,3029.0,3027.6,1.7574649]
[1769029961676,0.78657994,3028.9,3027.6,1.7574649]
[1769029961872,0.78657994,3028.9,3027.6,4.12117899]
[1769029962179,0.78657994,3028.9,3027.6,2.36371409]
[1769029964473,0.78657994,3028.8,3027.6,2.36371409]
[1769029964673,4.77226682,3029.4,3027.6,2.36371409]
[1769029964674,0.78657994,3028.7,3027.6,2.36371409]
[1769029964874,0.78657994,3028.6,3027.6,2.36371409]
[1769029965075,2.41422809,3029.3,3027.6,2.36371409]
[1769029965276,0.80456299,3029.2,3027.6,2.36371409]
[1769029965473,0.80456299,3029.1,3027.6,2.36371409]
[1769029965673,0.80456299,3029.0,3027.6,2.36371409]
[1769029965873,0.80456299,3028.9,3027.6,2.36371409]
[1769029966075,0.80456299,3028.8,3027.6,2.36371409]
[1769029966274,0.80456299,3028.7,3027.6,2.36371409]
[1769029966474,2.41422809,3029.3,3027.6,2.36371409]
[1769029966772,0.80448638,3029.2,3027.6,2.36371409]
[1769029967079,0.80448638,3029.1,3027.6,2.36371409]
[1769029967268,0.80448638,3029.0,3027.6,2.36371409]
[1769029967472,0.80448638,3028.9,3027.6,2.36371409]
[1769029967778,0.80448638,3028.8,3027.6,2.36371409]
[1769029967979,0.80448638,3028.7,3027.6,2.36371409]
[1769029968181,2.41422809,3029.3,3027.6,2.36371409]
[1769029968380,0.80438255,3029.2,3027.6,2.36371409]
[1769029968579,0.80438255,3029.1,3027.6,2.36371409]
[1769029968774,0.80438255,3029.0,3027.6,2.36371409]
[1769029968977,0.80438255,3028.9,3027.6,2.36371409]
[1769029969170,0.80438255,3028.8,3027.6,2.36371409]
[1769029969370,0.80438255,3028.7,3027.6,2.36371409]
[1769029969575,2.41422809,3029.3,3027.6,2.36371409]
[1769029969874,3.21856548,3029.2,3027.6,2.36371409]
[1769029970181,0.80433739,3029.1,3027.6,2.36371409]
[1769029974389,0.80433739,3029.1,3027.6,2.52899409]
[1769029975984,2.41422809,3029.0,3027.4,0.0024241]
[1769029976193,0.93413097,3028.2,3026.6,2.36371409]
[1769029976383,3.21856548,3028.1,3026.6,2.36371409]
[1769029976586,0.80433739,3028.0,3026.6,2.36371409]
[1769029977085,0.80433739,3028.0,3026.6,2.36634811]
[1769029978087,0.80433739,3027.9,3026.8,2.36371409]
[1769029978285,2.41422809,3028.5,3026.8,2.36371409]
[1769029978483,0.81594704,3028.4,3026.8,2.36371409]
[1769029978682,0.81594704,3028.3,3026.8,2.36371409]
[1769029978891,0.81594704,3028.2,3026.8,2.36371409]
[1769029979187,0.81594704,3028.1,3026.8,2.36371409]
[1769029979386,0.81594704,3028.0,3026.8,2.36371409]
[1769029979587,2.41422809,3028.5,3026.8,2.36371409]
[1769029979787,0.81567845,3028.4,3026.8,2.36371409]
[1769029979990,0.81567845,3028.3,3026.8,2.36371409]
[1769029980293,0.81567845,3028.2,3026.8,2.36371409]
[1769029980493,0.81567845,3028.1,3026.8,2.36371409]
[1769029980693,0.81567845,3028.0,3026.7,0.16533]
[1769029980895,0.81567845,3027.9,3026.7,0.16533]
[1769029981090,3.29499614,3028.2,3026.7,0.16533]
[1769029981296,0.81540184,3028.1,3026.7,2.64292546]
[1769029981496,0.81540184,3028.0,3026.7,2.64292546]
[1769029981693,0.81540184,3027.9,3026.7,2.64292546]
[1769029981894,3.29499614,3028.2,3026.7,2.64292546]
[1769029982095,0.81540148,3028.1,3026.7,2.64292546]
[1769029982294,0.81540148,3028.0,3026.7,2.64292546]
[1769029982495,0.81540148,3027.9,3026.7,2.64292546]
[1769029982691,3.29499614,3028.2,3026.7,2.64292546]
[1769029982897,0.81518128,3028.1,3026.7,2.64292546]
[1769029983103,0.81518128,3028.0,3026.7,2.64292546]
[1769029983303,0.81518128,3027.9,3026.7,2.64292546]
[1769029983604,3.29499614,3028.2,3026.7,2.64292546]
[1769029983904,0.81500907,3028.1,3026.7,2.64292546]
[1769029984106,0.81500907,3028.0,3026.7,2.64292546]
[1769029984299,0.81500907,3027.9,3026.7,2.64292546]
[1769029984499,3.29499614,3028.2,3026.7,2.64292546]
[1769029984705,0.8148814,3028.1,3026.7,2.64292546]
[1769029984907,0.8148814,3028.0,3026.7,2.64292546]
[1769029985109,0.8148814,3027.9,3026.7,2.64292546]
[1769029985410,3.29499614,3028.2,3026.7,2.64292546]
[1769029985599,0.81479029,3028.1,3026.7,2.64292546]
[1769029985803,0.81479029,3028.0,3026.7,2.64292546]
[1769029986004,0.81479029,3027.9,3026.7,2.64292546]
[1769029986307,5.02319283,3028.5,3026.7,2.64292546]
[1769029986609,0.8147361,3028.4,3026.7,2.64292546]
[1769029986804,3.16492893,3028.3,3026.7,2.64292546]
[1769029987006,0.8147361,3028.2,3026.7,6.51092546]
[1769029987507,0.8147361,3028.2,3026.8,2.47759546]
[1769029991110,0.93498728,3028.1,3026.8,2.47759546]
[1769029991312,0.8147361,3028.0,3026.8,2.47759546]
[1769029993907,0.93498728,3027.8,3026.8,2.47759546]
[1769029994109,0.93498728,3027.5,3026.7,3.868]
[1769029994305,0.93498728,3027.5,3026.0,3.22471223]
[1769029994306,0.93498728,3027.2,3026.2,3.868]
[1769029994506,0.93498728,3027.2,3026.0,0.87586745]
[1769029994803,0.93498728,3027.2,3025.9,2.47759546]
[1769029995410,0.93498728,3027.2,3025.9,2.48113041]
[1769029997012,3.28518011,3027.2,3025.9,0.00353495]
[1769029997201,0.93498728,3026.9,3025.9,0.00353495]
[1769029998214,0.93498728,3027.2,3025.9,2.48113041]
[1769029998418,0.81454366,3027.1,3025.9,2.48113041]
[1769029998708,0.93765226,3027.5,3026.0,2.47759546]
[1769029998902,0.81351004,3027.4,3026.0,2.47759546]
[1769029999106,0.93765226,3027.5,3026.0,2.47759546]
[1769029999302,0.81350649,3027.4,3026.0,2.47759546]
[1769029999514,0.81350649,3027.3,3026.0,2.47759546]
[1769029999810,0.93765226,3027.5,3026.0,2.47759546]
[1769030000012,0.81350668,3027.4,3026.0,2.47759546]
[1769030000204,0.93498728,3026.9,3025.9,0.16890495]
[1769030000610,0.93498728,3026.9,3025.9,0.00353495]
[1769030001615,1.2015639,3026.9,3025.9,0.00353495]
[1769030001916,0.93498728,3026.9,3025.9,0.00353495]
[1769030002914,0.00266498,3027.5,3026.0,2.47759546]
[1769030002915,1.20482474,3027.5,3026.0,2.47759546]
[1769030003214,0.93498728,3027.2,3025.9,0.16890495]
[1769030003415,0.93498728,3027.2,3025.9,2.64650041]
[1769030004714,0.93498728,3026.9,3025.9,0.00353495]
[1769030008516,0.26983746,3027.5,3026.1,0.93498728]
[1769030008717,0.81422555,3027.4,3026.0,2.64296546]
[1769030008918,0.81422555,3027.3,3026.0,2.64296546]
[1769030009116,0.8142174,3027.2,3026.0,2.64296546]
[1769030009320,1.20482474,3027.5,3026.0,2.64296546]
[1769030009523,0.81427543,3027.4,3026.0,2.64296546]
[1769030009725,0.81427543,3027.3,3026.0,2.64296546]
[1769030009919,0.81427543,3027.2,3026.0,2.64296546]
[1769030010225,1.20482474,3027.5,3026.0,2.64296546]
[1769030010423,0.81430983,3027.4,3026.0,2.64296546]
[1769030010625,0.81430983,3027.3,3026.0,2.64296546]
[1769030010926,0.81430983,3027.2,3026.0,2.64296546]
[1769030011130,1.20482474,3027.5,3026.0,2.64296546]
[1769030011329,0.81434293,3027.4,3026.0,2.64296546]
[1769030011526,0.81434293,3027.3,3026.0,2.64296546]
[1769030011823,1.74933021,3027.2,3026.0,2.64296546]
[1769030012027,0.93498728,3027.2,3026.0,2.64296546]
[1769030012929,0.26983746,3027.5,3026.2,2.47272717]
[1769030013129,0.81436296,3027.4,3026.2,2.47272717]
[1769030013329,0.81436296,3027.3,3026.2,2.47272717]
[1769030013531,0.26983746,3027.5,3026.2,2.47272717]
[1769030013725,0.81442515,3027.4,3026.2,2.47272717]
[1769030013920,0.81442515,3027.3,3026.2,2.47272717]
[1769030014128,0.26983746,3027.5,3026.2,2.47272717]
[1769030014328,0.8144956,3027.4,3026.2,2.47272717]
[1769030014523,0.8144956,3027.3,3026.2,2.47272717]
[1769030014730,1.20482474,3027.5,3026.2,2.47272717]
[1769030015032,0.93498728,3027.2,3026.2,2.47272717]
[1769030015328,0.81449625,3027.1,3026.2,2.47272717]
[1769030016433,0.81449625,3027.1,3026.1,0.16536]
[1769030017327,0.81449625,3027.1,3026.1,2.63808717]
[1769030017520,1.20482474,3027.5,3026.1,2.63808717]
[1769030017726,0.81477907,3027.4,3026.1,2.63808717]
[1769030017925,0.81477907,3027.3,3026.1,2.63808717]
[1769030018127,1.20482474,3027.5,3026.1,2.63808717]
[1769030018331,0.81493326,3027.4,3026.1,2.63808717]
[1769030018531,1.20482474,3027.5,3026.1,2.63808717]
[1769030018532,0.81493326,3027.3,3026.1,2.63808717]
[1769030018725,1.20482474,3027.5,3026.1,2.63808717]
[1769030018925,0.8149332,3027.4,3026.1,2.63808717]
[1769030019129,0.8149332,3027.3,3026.1,2.63808717]
[1769030019328,0.8149332,3027.2,3026.1,2.63808717]
[1769030019528,1.20482474,3027.5,3026.1,2.63808717]
[1769030019834,0.81510713,3027.4,3026.1,2.63808717]
[1769030020034,0.81510713,3027.3,3026.1,2.63808717]
[1769030020227,0.81510713,3027.2,3026.1,2.63808717]
[1769030020426,1.20482474,3027.5,3026.1,2.63808717]
[1769030020631,0.81530499,3027.4,3026.1,2.63808717]
[1769030020830,0.81530499,3027.3,3026.2,2.63808717]
[1769030021031,0.81530499,3027.2,3026.2,2.63808717]
[1769030021231,0.93765226,3027.5,3026.3,2.63807717]
[1769030021530,0.8155263,3027.4,3026.3,2.63807717]
[1769030021830,0.00266498,3027.5,3026.4,2.63807717]
[1769030022135,0.81548668,3027.4,3026.4,2.63807717]
[1769030022331,0.00266498,3027.5,3026.4,2.63807717]
[1769030022534,0.81570108,3027.4,3026.4,2.63807717]
[1769030022733,0.00266498,3027.5,3026.4,2.63807717]
[1769030022934,0.81570106,3027.4,3026.4,2.63807717]
[1769030023231,0.81570151,3027.3,3026.4,2.63807717]
[1769030023431,0.00266498,3027.5,3026.4,2.63807717]
[1769030023632,0.81596985,3027.4,3026.4,2.63807717]
[1769030023835,0.81596985,3027.3,3026.4,2.63807717]
[1769030024035,0.00266498,3027.5,3026.4,2.63807717]
[1769030024231,0.81620954,3027.4,3026.4,2.63807717]
[1769030024437,0.81620954,3027.3,3026.4,2.63807717]
[1769030024740,0.00266498,3027.5,3026.4,2.63807717]
[1769030025038,0.81620974,3027.4,3026.4,2.63807717]
[1769030025232,2.35803873,3028.1,3026.6,2.47272717]
[1769030025433,0.26041441,3028.1,3026.6,2.47272717]
[1769030025738,3.29302601,3028.2,3026.6,2.47272717]
[1769030025933,3.29302601,3028.2,3026.6,2.63806717]
[1769030026140,0.93498728,3028.2,3026.7,2.63805717]
[1769030026335,0.93854049,3028.2,3026.7,2.63805717]
[1769030026738,1.20643624,3028.2,3026.7,2.63805717]
[1769030026934,0.27144896,3028.2,3026.9,2.47272717]
[1769030028143,0.00355321,3028.2,3026.9,2.47272717]
[1769030030438,0.00355321,3028.2,3027.1,3.40771445]
[1769030030638,0.00355321,3028.2,3027.4,0.93498728]
[1769030030846,0.26348176,3028.9,3027.5,2.47272717]
[1769030031139,6.06629446,3029.1,3027.5,2.47272717]
[1769030031446,0.93498728,3028.8,3027.5,2.47272717]
[1769030031943,0.93731438,3028.8,3027.5,2.47272717]
[1769030035943,0.93731438,3028.8,3027.4,2.63801717]
[1769030037236,0.0023271,3028.8,3027.8,0.93498728]
[1769030038143,0.0023271,3028.8,3027.9,2.47272717]
[1769030038351,0.93498728,3029.7,3028.2,2.63797717]
[1769030038540,0.79868976,3029.6,3028.2,2.63797717]
[1769030038741,0.93498728,3030.0,3028.5,2.47272717]
[1769030039047,0.79862925,3029.9,3028.5,2.47272717]
[1769030039241,0.79862925,3029.8,3028.5,2.47621797]
[1769030039441,0.00374012,3029.9,3028.5,2.47621797]
[1769030039642,0.79790898,3029.8,3028.5,2.47621797]
[1769030039842,0.00374012,3029.9,3028.5,2.47621797]
[1769030040043,0.79790763,3029.8,3028.5,2.47621797]
[1769030040243,0.00374012,3029.9,3028.5,2.47621797]
[1769030040445,0.79790541,3029.8,3028.5,2.47621797]
[1769030040643,0.00374012,3029.9,3028.5,2.47621797]
[1769030040845,0.79790539,3029.8,3028.5,2.47621797]
[1769030041044,0.93498728,3029.4,3028.5,0.0034908]
[1769030045046,3.79849344,3029.7,3028.5,0.0034908]
[1769030046852,0.93498728,3029.1,3028.5,0.0034908]
[1769030047852,3.79849344,3029.4,3028.5,0.0034908]
[1769030048949,0.93498728,3029.4,3028.5,0.0034908]
[1769030052851,2.86350616,3029.8,3028.5,0.0034908]
[1769030053153,2.86350616,3029.6,3028.5,0.0034908]
[1769030053360,2.86350616,3029.4,3027.5,0.16529]
[1769030053655,2.86350616,3029.2,3027.5,0.16529]
[1769030053855,2.86350616,3029.0,3027.5,0.16529]
[1769030054453,2.86350616,3028.8,3026.9,0.16532]
[1769030054656,2.86350616,3028.6,3026.9,0.16924558]
[1769030055258,0.9341797,3029.1,3026.9,0.00392558]
[1769030055259,2.86350616,3028.4,3026.9,0.00392558]
[1769030055457,2.86350616,3028.2,3026.9,0.00392558]
[1769030055653,0.79850461,3028.1,3026.9,0.00392558]
[1769030055857,2.86350616,3028.2,3026.9,0.00392558]
[1769030057760,2.86350616,3028.6,3026.9,2.88184305]
[1769030057961,0.79871466,3028.5,3026.9,2.88184305]
[1769030058158,2.86350616,3028.6,3026.9,2.88184305]
[1769030058361,0.79886355,3028.5,3026.9,2.88184305]
[1769030058556,2.86350616,3028.6,3026.9,2.88184305]
[1769030058751,0.79885904,3028.5,3026.9,2.88184305]
[1769030058957,2.86350616,3028.6,3026.9,2.88184305]
[1769030059160,0.79885903,3028.5,3026.9,3.04716305]